bitfinex/quotes_SOLUSD_20220302
["timestamp","ask_amount","ask_price","bid_price","bid_amount"]
[1646199722144,23.1096,103.48,103.4,26.043]
[1646199722344,23.1096,103.48,103.4,28.59204003]
[1646199723646,23.1096,103.48,103.4,33.59204003]
[1646199723946,23.1096,103.48,103.4,28.59204003]
[1646199725746,75.61873925,103.48,103.4,28.59204003]
[1646199725949,75.61873925,103.48,103.4,26.043]
[1646199727156,52.50913925,103.48,103.4,28.59204003]
[1646199727448,52.50913925,103.48,103.4,33.59204003]
[1646199728852,52.50913925,103.48,103.4,26.043]
[1646199731075,134.4507,103.5,103.4,26.043]
[1646199731275,23.567,103.5,103.4,53.48104003]
[1646199731475,23.567,103.5,103.4,149.86104003]
[1646199731675,23.567,103.5,103.4,159.50197295]
[1646199731874,23.567,103.5,103.4,185.38189227]
[1646199732076,23.567,103.5,103.4,199.17826223]
[1646199732279,23.567,103.5,103.44,14.4978]
[1646199732578,78.13607689,103.5,103.44,26.0378]
[1646199734080,23.567,103.5,103.44,26.0378]
[1646199734882,23.567,103.5,103.44,11.54]
[1646199735082,53.40875259,103.49,103.44,11.54]
[1646199735479,53.40875259,103.49,103.41,11.54]
[1646199735679,53.40875259,103.49,103.4,11.54]
[1646199737085,53.40875259,103.49,103.4,26.0432]
[1646199738585,55.57357766,103.49,103.4,28.59224003]
[1646199738785,23.567,103.5,103.4,124.97224003]
[1646199738987,23.567,103.5,103.4,150.85215935]
[1646199740286,69.69234221,103.5,103.4,150.85215935]
[1646199740486,69.69234221,103.5,103.43,5.0]
[1646199740688,69.69234221,103.5,103.43,16.54]
[1646199741589,46.12534221,103.5,103.43,16.54]
[1646199741788,23.5333,103.51,103.43,16.54]
[1646199742592,23.5333,103.51,103.43,31.0399]
[1646199742792,23.5333,103.51,103.43,122.4199]
[1646199742992,23.5333,103.51,103.43,124.96894003]
[1646199743190,23.5333,103.51,103.43,139.26284003]
[1646199743390,23.5333,103.51,103.44,5.0]
[1646199743589,23.5333,103.51,103.45,11.54]
[1646199744390,71.13979815,103.51,103.45,11.54]
[1646199744589,23.5333,103.51,103.45,11.54]
[1646199745092,23.5333,103.51,103.45,26.036]
[1646199745689,3.5333,103.51,103.45,26.036]
[1646199746390,23.437,103.52,103.45,26.036]
[1646199747190,23.4988,103.54,103.45,26.036]
[1646199747391,23.4988,103.54,103.45,127.19317143]
[1646199747992,23.4988,103.54,103.45,150.11857143]
[1646199748192,23.4988,103.54,103.47,5.0]
[1646199748391,23.4988,103.54,103.49,14.4916]
[1646199748595,49.97495129,103.56,103.49,14.4916]
[1646199748993,49.97495129,103.56,103.48,11.54]
[1646199749593,49.97495129,103.56,103.48,26.0328]
[1646199750695,49.97495129,103.56,103.48,40.3183]
[1646199755101,146.35495129,103.56,103.48,11.54]
[1646199755299,160.85035129,103.56,103.48,11.54]
[1646199755499,164.71335129,103.56,103.47,23.2634]
[1646199755698,181.35416242,103.56,103.46,14.4947]
[1646199755900,120.1369,103.55,103.46,14.4947]
[1646199756099,141.03530515,103.54,103.46,14.4947]
[1646199757103,44.65530515,103.54,103.46,14.4947]
[1646199757304,44.65530515,103.54,103.46,26.0347]
[1646199760106,141.03530515,103.54,103.46,11.54]
[1646199760306,157.69843022,103.54,103.46,11.54]
[1646199761305,161.56243022,103.54,103.46,11.54]
[1646199761507,157.69843022,103.54,103.46,11.54]
[1646199762508,61.31843022,103.54,103.46,11.54]
[1646199763708,157.69843022,103.54,103.46,11.54]
[1646199765207,61.31843022,103.54,103.46,11.54]
[1646199765411,59.15360515,103.54,103.46,11.54]
[1646199765609,44.65530515,103.54,103.46,11.54]
[1646199767009,44.65530515,103.54,103.46,26.0354]
[1646199767913,23.7569,103.55,103.46,26.0354]
[1646199768111,23.7569,103.55,103.46,129.96444003]
[1646199768312,3.864,103.58,103.46,127.32018771]
[1646199768511,112.9,103.59,103.46,141.87958771]
[1646199768912,58.58932954,103.58,103.49,96.38]
[1646199769217,58.58932954,103.58,103.51,14.4875]
[1646199769412,58.58932954,103.58,103.51,26.0275]
[1646199771218,58.58932954,103.58,103.51,33.9965]
[1646199772628,58.58932954,103.58,103.51,26.0275]
[1646199779547,154.96932954,103.58,103.5,23.5845]
[1646199780148,177.59342954,103.58,103.5,23.5845]
[1646199783950,177.59342954,103.58,103.5,38.0748]
[1646199786157,177.59342954,103.58,103.5,52.2562]
[1646199786455,81.21342954,103.58,103.5,52.2562]
[1646199786653,59.5043945,103.56,103.5,52.2562]
[1646199788453,59.5043945,103.56,103.5,23.5845]
[1646199789454,57.90635261,103.54,103.48,18.3553]
[1646199789754,57.90635261,103.54,103.48,3.863]
[1646199796771,57.90635261,103.54,103.47,26.0345]
[1646199798474,23.3088,103.55,103.47,26.0345]
[1646199799276,23.3088,103.55,103.47,122.4145]
[1646199799879,77.13335821,103.57,103.47,122.4145]
[1646199800076,23.1259,103.57,103.47,127.4145]
[1646199800282,23.1259,103.57,103.47,122.4145]
[1646199800479,23.1259,103.57,103.48,5.0]
[1646199800679,23.1259,103.57,103.51,14.4885]
[1646199802378,60.42133254,103.56,103.51,14.4885]
[1646199802981,23.1259,103.57,103.51,14.4885]
[1646199803681,23.1259,103.57,103.51,29.3203]
[1646199803880,77.02902258,103.57,103.51,29.3203]
[1646199804101,77.02902258,103.57,103.51,14.4885]
[1646199805607,23.1259,103.57,103.51,14.4885]
[1646199808207,23.1259,103.57,103.51,26.0285]
[1646199810209,20.15367859,103.61,103.51,122.4085]
[1646199810407,24.6514,103.6,103.52,22.633]
[1646199810608,24.6514,103.6,103.53,14.4855]
[1646199811212,43.33367253,103.59,103.53,14.4855]
[1646199811409,43.33367253,103.59,103.53,26.0255]
[1646199811811,24.6514,103.6,103.53,26.0255]
[1646199812420,24.6514,103.6,103.53,122.4055]
[1646199812614,22.786,103.62,103.53,122.4055]
[1646199813012,22.786,103.62,103.53,136.8587]
[1646199813220,79.81831532,103.62,103.53,145.9187]
[1646199813613,79.81831532,103.62,103.53,150.9187]
[1646199814221,137.7394,103.63,103.53,145.9187]
[1646199814414,137.7394,103.63,103.55,96.38]
[1646199814616,137.7394,103.63,103.56,26.0218]
[1646199814815,24.8394,103.63,103.56,26.0218]
[1646199815214,74.89494875,103.63,103.56,26.0218]
[1646199816014,24.8394,103.63,103.56,26.0218]
[1646199816216,47.54273306,103.66,103.56,122.4018]
[1646199816414,23.9674,103.65,103.56,127.4018]
[1646199816915,23.9674,103.65,103.56,122.4018]
[1646199817116,78.67725557,103.65,103.56,127.4018]
[1646199817623,78.67725557,103.65,103.56,141.913]
[1646199818021,23.9674,103.65,103.56,141.913]
[1646199818216,24.568,103.66,103.56,144.46204003]
[1646199818417,24.568,103.66,103.56,189.77849708]
[1646199818615,24.568,103.66,103.61,14.4749]
[1646199818816,24.4234,103.68,103.62,11.54]
[1646199819319,28.1924,103.7,103.62,20.518]
[1646199819516,24.3334,103.7,103.62,20.518]
[1646199819716,24.3334,103.7,103.62,116.898]
[1646199821017,45.49388076,103.69,103.63,14.4719]
[1646199821217,24.3334,103.7,103.64,11.54]
[1646199822218,73.70464943,103.7,103.64,11.54]
[1646199823018,73.70464943,103.7,103.61,11.54]
[1646199823219,170.08464943,103.7,103.61,11.54]
[1646199823418,186.68683628,103.7,103.61,11.54]
[1646199823919,188.85171582,103.7,103.61,11.54]
[1646199824119,58.57079261,103.68,103.61,11.54]
[1646199825125,28.6012,103.69,103.61,11.54]
[1646199825321,28.6012,103.69,103.61,26.0148]
[1646199825322,24.7432,103.69,103.61,26.0148]
[1646199826522,24.7432,103.69,103.61,122.3948]
[1646199828222,24.7432,103.69,103.61,124.94384003]
[1646199828423,24.3334,103.7,103.61,129.94384003]
[1646199829328,24.3334,103.7,103.61,124.94384003]
[1646199829927,24.3334,103.7,103.63,96.38]
[1646199830127,24.3334,103.7,103.64,26.01]
[1646199831046,76.5213783,103.7,103.64,26.01]
[1646199831447,24.3334,103.7,103.64,26.01]
[1646199832448,84.26990195,103.7,103.64,26.01]
[1646199840763,84.26990195,103.7,103.64,11.54]
[1646199843860,24.3334,103.7,103.64,11.54]
[1646199844060,22.9025,103.72,103.64,122.3908]
[1646199844261,22.9025,103.72,103.64,124.93984003]
[1646199844461,3.858,103.77,103.64,149.30983041]
[1646199844661,5.0,103.77,103.66,96.38]
[1646199844860,54.90049694,103.76,103.66,96.38]
[1646199845064,54.90049694,103.76,103.67,134.83903041]
[1646199845462,54.90049694,103.76,103.68,2.54904003]
[1646199845865,54.90049694,103.76,103.69,11.54]
[1646199846062,54.90049694,103.76,103.69,26.0019]
[1646199846462,54.90049694,103.76,103.69,11.54]
[1646199847063,151.28049694,103.76,103.69,11.54]
[1646199847261,151.28049694,103.76,103.65,24.8221]
[1646199847462,29.14773808,103.75,103.65,38.91114003]
[1646199847668,23.1185,103.75,103.65,38.91114003]
[1646199848164,46.5171,103.75,103.65,38.91114003]
[1646199848762,46.5171,103.75,103.65,36.3621]
[1646199849165,142.8971,103.75,103.67,14.4664]
[1646199849364,142.8971,103.75,103.67,11.54]
[1646199849565,146.7531,103.75,103.67,11.54]
[1646199850766,161.2219,103.75,103.67,11.54]
[1646199851969,3.856,103.74,103.67,11.54]
[1646199855571,161.2229,103.75,103.67,11.54]
[1646199855972,157.3659,103.75,103.67,11.54]
[1646199857079,60.9859,103.75,103.67,11.54]
[1646199858977,46.5171,103.75,103.67,26.0065]
[1646199861380,73.49601712,103.76,103.67,26.0065]
[1646199861578,5.0,103.77,103.68,2.54904003]
[1646199861776,23.0875,103.77,103.71,14.4599]
[1646199861979,23.0875,103.77,103.72,11.54]
[1646199862180,26.5139,103.81,103.72,11.54]
[1646199862480,23.3186,103.8,103.72,11.54]
[1646199862684,51.30968624,103.79,103.72,11.54]
[1646199862886,51.30968624,103.79,103.73,14.457]
[1646199863083,147.68968624,103.79,103.73,11.54]
[1646199863280,153.71692432,103.79,103.7,24.9227]
[1646199863479,119.9451,103.78,103.7,24.9227]
[1646199863678,119.9451,103.78,103.7,36.4627]
[1646199863882,122.11733808,103.78,103.7,36.4627]
[1646199864280,25.73733808,103.78,103.69,14.4637]
[1646199864481,48.177532,103.78,103.68,23.8701]
[1646199864680,101.38,103.77,103.68,23.8701]
[1646199865079,120.992432,103.76,103.68,23.8701]
[1646199865279,47.0553452,103.75,103.68,23.8701]
[1646199865480,49.22758328,103.75,103.68,23.8701]
[1646199865681,2.17223808,103.74,103.68,23.8701]
[1646199866482,2.17223808,103.74,103.67,14.4661]
[1646199866681,2.17223808,103.74,103.63,110.8821]
[1646199866880,121.60923808,103.74,103.64,22.7258]
[1646199867281,2.17223808,103.73,103.64,34.2658]
[1646199868084,2.17223808,103.73,103.65,14.4688]
[1646199868885,6.02923808,103.73,103.65,14.4688]
[1646199869686,3.857,103.73,103.65,26.0088]
[1646199869885,23.057,103.74,103.65,122.3888]
[1646199871187,23.057,103.74,103.66,101.38]
[1646199871391,3.857,103.77,103.68,110.8431]
[1646199871612,82.86438362,103.77,103.69,107.92]
[1646199871907,52.017032,103.8,103.69,107.92]
[1646199872108,72.45589392,103.8,103.69,107.92]
[1646199872507,72.45589392,103.8,103.71,110.8407]
[1646199872707,117.35120645,103.8,103.72,11.54]
[1646199874216,117.35120645,103.8,103.74,14.4572]
[1646199874615,117.35120645,103.8,103.71,60.08]
[1646199875014,213.73120645,103.8,103.71,60.08]
[1646199875211,213.73120645,103.8,103.72,14.4589]
[1646199875515,215.90344453,103.8,103.69,14.1065]
[1646199875911,212.04744453,103.8,103.69,14.1065]
[1646199876124,18.3181,103.79,103.7,14.462]
[1646199876311,96.38,103.78,103.7,14.462]
[1646199876511,2.17223808,103.78,103.7,14.462]
[1646199876714,2.17223808,103.78,103.7,26.002]
[1646199877413,191.29001253,103.8,103.7,26.002]
[1646199877414,97.08225061,103.8,103.7,26.002]
[1646199877820,215.67312453,103.8,103.7,26.002]
[1646199878615,119.29312453,103.8,103.7,26.002]
[1646199879017,133.75482453,103.8,103.7,49.2111]
[1646199879418,97.08225061,103.8,103.7,49.2111]
[1646199879621,91.05501253,103.8,103.7,49.2111]
[1646199880018,91.05501253,103.8,103.7,145.5911]
[1646199880822,91.05501253,103.8,103.7,150.5911]
[1646199881724,21.73940726,103.83,103.71,2.54904003]
[1646199881921,44.29420726,103.83,103.74,110.8348]
[1646199882123,44.29420726,103.83,103.74,135.5007]
[1646199882521,44.29420726,103.83,103.74,147.0407]
[1646199882722,54.53357813,103.82,103.74,50.6607]
[1646199887324,50.03357813,103.82,103.74,50.6607]
[1646199889529,50.03357813,103.82,103.74,147.0407]
[1646199889725,30.32933808,103.85,103.74,147.0407]
[1646199889926,28.1571,103.85,103.74,149.58974003]
[1646199890127,23.1571,103.85,103.74,149.58974003]
[1646199890527,47.4071,103.85,103.74,149.58974003]
[1646199890726,46.6423774,103.84,103.74,149.58974003]
[1646199894036,46.6423774,103.84,103.74,147.0407]
[1646199896537,46.6423774,103.84,103.74,50.6607]
[1646199896739,50.4953774,103.84,103.74,50.6607]
[1646199896936,74.40702274,103.84,103.74,50.6607]
[1646199897536,72.23478466,103.84,103.74,50.6607]
[1646199897938,57.62251957,103.82,103.74,50.6607]
[1646199901045,156.17475765,103.82,103.74,39.1207]
[1646199901245,160.02875765,103.82,103.74,24.6659]
[1646199901648,165.02875765,103.82,103.74,24.6659]
[1646199902446,68.64875765,103.82,103.74,24.6659]
[1646199902646,61.47651957,103.82,103.74,24.6659]
[1646199902847,57.62251957,103.82,103.74,24.6659]
[1646199904547,61.47651957,103.82,103.74,24.6659]
[1646199905048,61.47651957,103.82,103.74,39.123]
[1646199905469,57.62251957,103.82,103.74,39.123]
[1646199905867,32.62251957,103.82,103.74,39.123]
[1646199906065,32.62251957,103.82,103.74,50.663]
[1646199906666,34.79475765,103.82,103.74,39.123]
[1646199906869,135.02875765,103.82,103.74,39.123]
[1646199908070,149.48775765,103.82,103.74,39.123]
[1646199908269,53.10775765,103.82,103.74,39.123]
[1646199908668,49.25375765,103.82,103.74,39.123]
[1646199909877,34.79475765,103.82,103.74,39.123]
[1646199910976,131.17475765,103.82,103.74,39.123]
[1646199911176,145.63365765,103.82,103.74,39.123]
[1646199911378,145.63365765,103.82,103.74,24.6659]
[1646199913379,49.25365765,103.82,103.74,24.6659]
[1646199913578,38.64875765,103.82,103.74,39.1233]
[1646199915580,55.79689157,103.82,103.74,39.1233]
[1646199916986,32.62251957,103.82,103.74,50.6633]
[1646199917183,32.62251957,103.82,103.74,147.0433]
[1646199917385,32.62251957,103.82,103.74,50.6633]
[1646199917885,22.8419,103.83,103.74,50.6633]
[1646199918792,71.49980741,103.85,103.74,147.0433]
[1646199918986,95.76660741,103.85,103.74,149.59234003]
[1646199920289,47.4239,103.85,103.75,101.38]
[1646199920488,47.4239,103.85,103.78,110.8307]
[1646199920688,47.4239,103.85,103.79,11.54]
[1646199921188,3.852,103.89,103.79,11.54]
[1646199921387,78.12940207,103.88,103.79,132.8729]
[1646199921588,78.12940207,103.88,103.79,44.6159]
[1646199921988,78.12940207,103.88,103.8,14.4475]
[1646199922189,78.12940207,103.88,103.81,11.54]
[1646199922401,174.50940207,103.88,103.78,48.1581]
[1646199922595,2.17223808,103.87,103.77,29.4383]
[1646199922793,96.38,103.84,103.77,5.0]
[1646199922996,96.38,103.82,103.77,5.0]
[1646199923194,144.43129167,103.81,103.77,5.0]
[1646199923389,155.97129167,103.81,103.71,48.2646]
[1646199923588,55.59017142,103.79,103.71,48.2646]
[1646199923988,31.38856454,103.78,103.71,48.2646]
[1646199924390,56.2377998,103.77,103.71,48.2646]
[1646199924790,31.38856454,103.78,103.71,48.2646]
[1646199925795,83.05433748,103.78,103.71,48.2646]
[1646199926493,51.66577294,103.78,103.71,62.7251]
[1646199927093,2.17223808,103.8,103.71,159.1051]
[1646199927295,23.3109,103.82,103.71,159.1051]
[1646199927494,23.3109,103.82,103.71,170.6451]
[1646199927892,27.1649,103.82,103.71,170.6451]
[1646199928092,84.89047779,103.82,103.71,170.6451]
[1646199928292,84.89047779,103.82,103.71,175.6451]
[1646199930095,84.89047779,103.82,103.71,178.19414003]
[1646199930391,23.3109,103.82,103.71,178.19414003]
[1646199930591,23.3109,103.82,103.71,175.49551755]
[1646199930793,23.3109,103.82,103.73,96.38]
[1646199930994,23.3109,103.82,103.75,14.4531]
[1646199931792,76.87586708,103.82,103.75,14.4531]
[1646199933295,23.3109,103.82,103.75,110.8331]
[1646199933495,23.3109,103.82,103.75,14.4531]
[1646199934094,23.3109,103.82,103.75,28.734]
[1646199934497,23.3109,103.82,103.75,40.274]
[1646199935598,49.21639849,103.81,103.75,40.274]
[1646199935799,49.21639849,103.81,103.75,25.9931]
[1646199936003,49.21639849,103.81,103.75,14.4531]
[1646199937911,23.3109,103.82,103.75,14.4531]
[1646199939528,54.09191898,103.81,103.75,14.4531]
[1646199940829,54.09191898,103.81,103.73,37.9388]
[1646199943132,192.18525594,103.81,103.71,38.8987]
[1646199943429,46.85317277,103.79,103.71,62.4171]
[1646199945132,46.85317277,103.79,103.71,158.7971]
[1646199945735,46.85317277,103.79,103.71,62.4171]
[1646199947936,46.85317277,103.79,103.71,76.8026]
[1646199948937,46.85317277,103.79,103.71,62.4171]
[1646199952545,46.85317277,103.79,103.71,77.2334]
[1646199955947,46.85317277,103.79,103.71,62.4171]
[1646199957346,5.0,103.81,103.71,170.3371]
[1646199957545,46.3312,103.82,103.71,170.3371]
[1646199958149,46.3312,103.82,103.71,184.9575]
[1646199958550,46.3312,103.82,103.71,189.9575]
[1646199958551,43.03280624,103.81,103.71,189.9575]
[1646199960250,22.7331,103.8,103.71,189.9575]
[1646199960449,42.98120707,103.79,103.71,93.5775]
[1646199961653,42.98120707,103.79,103.71,189.9575]
[1646199961850,42.98120707,103.79,103.71,78.9571]
[1646199962051,42.98120707,103.79,103.71,62.4171]
[1646199962451,48.98272856,103.77,103.71,62.4171]
[1646199964656,48.98272856,103.77,103.71,14.4604]
[1646199964954,48.98272856,103.77,103.69,18.3186]
[1646199965152,145.36272856,103.77,103.69,14.4636]
[1646199965353,154.56772856,103.77,103.68,28.2451]
[1646199965553,158.42372856,103.77,103.68,24.3891]
[1646199965758,121.2087,103.76,103.66,24.1124]
[1646199965953,51.24919698,103.75,103.66,46.7945]
[1646199966156,24.8287,103.74,103.66,46.7945]
[1646199966554,47.23881388,103.73,103.66,143.1745]
[1646199966754,47.23881388,103.73,103.66,58.3345]
[1646199967156,47.23881388,103.73,103.67,14.4664]
[1646199967353,47.23881388,103.73,103.67,18.3234]
[1646199968358,24.8287,103.74,103.67,18.3234]
[1646199968759,24.2552,103.77,103.67,29.8634]
[1646199968956,24.2552,103.77,103.68,24.6286]
[1646199969167,24.2552,103.77,103.7,14.4618]
[1646199969557,77.15926112,103.78,103.7,32.1318]
[1646199969758,77.15926112,103.78,103.7,128.5118]
[1646199969958,77.15926112,103.78,103.7,32.1318]
[1646199970562,77.15926112,103.78,103.7,26.0018]
[1646199971368,173.53926112,103.78,103.7,26.0018]
[1646199971564,173.53926112,103.78,103.7,14.4618]
[1646199971763,51.69748744,103.76,103.7,14.4618]
[1646199971964,51.69748744,103.76,103.67,72.4977]
[1646199972164,23.2022,103.75,103.67,72.4977]
[1646199972365,60.63424811,103.74,103.67,72.4977]
[1646199972882,60.63424811,103.74,103.67,168.8777]
[1646199973087,23.2022,103.75,103.69,14.4642]
[1646199973986,83.65947877,103.75,103.69,14.4642]
[1646199975885,180.03947877,103.75,103.67,14.4663]
[1646199977485,56.93824778,103.73,103.66,27.9674]
[1646199978889,153.31824778,103.73,103.66,3.855]
[1646199979286,177.08084035,103.73,103.66,3.855]
[1646199979585,247.92000938,103.73,103.62,10.07624348]
[1646199979785,247.92000938,103.73,103.59,25.9879]
[1646199979986,96.38,103.69,103.62,14.4733]
[1646199980285,47.03142385,103.68,103.62,14.4733]
[1646199981488,18.333,103.71,103.62,14.4733]
[1646199982492,48.74637731,103.7,103.62,14.4733]
[1646199983692,145.12637731,103.7,103.62,14.4733]
[1646199985394,139.92927115,103.68,103.6,14.4763]
[1646199986694,43.54927115,103.68,103.6,14.4763]
[1646199988300,43.54927115,103.68,103.6,122.3963]
[1646199989504,43.54927115,103.68,103.6,26.0163]
[1646199990300,43.54927115,103.68,103.6,122.3963]
[1646199990499,43.54927115,103.68,103.6,26.0163]
[1646199991299,43.54927115,103.68,103.6,31.0163]
[1646199991501,43.54927115,103.68,103.6,127.3963]
[1646199991700,24.326,103.69,103.6,127.3963]
[1646199992104,24.326,103.69,103.6,31.0163]
[1646199992501,24.326,103.69,103.6,127.3963]
[1646199994003,24.326,103.69,103.6,131.2553]
[1646199994404,56.53767573,103.68,103.6,131.2553]
[1646199994607,56.53767573,103.68,103.6,34.8753]
[1646199995004,56.53767573,103.68,103.6,23.3353]
[1646199995207,152.91767573,103.68,103.6,14.4763]
[1646199996205,56.53767573,103.68,103.6,14.4763]
[1646199997807,24.326,103.69,103.6,14.4763]
[1646199998207,24.326,103.69,103.6,39.2935]
[1646199998907,45.01827668,103.68,103.6,39.2935]
[1646199999110,45.01827668,103.68,103.6,53.4706]
[1646200000213,24.326,103.69,103.61,107.92]
[1646200000610,24.326,103.69,103.63,14.4713]
[1646200000809,24.326,103.69,103.63,26.0113]
[1646200003112,53.05148716,103.68,103.63,26.0113]
[1646200003311,53.05148716,103.68,103.63,14.4713]
[1646200004013,53.05148716,103.68,103.61,14.4748]
[1646200004312,24.326,103.69,103.61,14.4748]
[1646200005311,72.10351873,103.69,103.61,14.4748]
[1646200005713,72.10351873,103.69,103.61,26.0148]
[1646200006113,24.326,103.69,103.61,26.0148]
[1646200006314,24.326,103.69,103.61,122.3948]
[1646200006534,24.326,103.69,103.61,26.0148]
[1646200007416,54.06207671,103.68,103.61,26.0148]
[1646200007818,24.326,103.69,103.61,26.0148]
[1646200008217,24.326,103.69,103.61,127.3948]
[1646200008420,24.326,103.69,103.61,122.3948]
[1646200008618,24.22,103.72,103.61,122.3948]
[1646200008818,24.9852,103.71,103.64,14.469]
[1646200009019,24.22,103.72,103.64,110.849]
[1646200009219,24.22,103.72,103.65,11.54]
[1646200010822,24.22,103.72,103.67,14.4665]
[1646200011923,50.6996502,103.71,103.67,14.4665]
[1646200012728,50.6996502,103.71,103.65,48.2215]
[1646200012729,50.6996502,103.71,103.65,14.4695]
[1646200013526,50.6996502,103.71,103.63,8.857]
[1646200013726,73.5603502,103.71,103.63,8.857]
[1646200014341,73.5603502,103.71,103.63,3.857]
[1646200014943,169.9403502,103.71,103.63,3.857]
[1646200015146,73.5603502,103.71,103.62,38.0891]
[1646200015348,73.5603502,103.71,103.62,34.2311]
[1646200016048,73.5603502,103.71,103.62,48.7048]
[1646200021653,169.9403502,103.71,103.62,48.7048]
[1646200021951,184.4149502,103.71,103.62,14.4737]
[1646200022151,57.80862703,103.69,103.61,5.0]
[1646200022352,154.18862703,103.69,103.6,28.6535]
[1646200024057,168.66572703,103.69,103.6,28.6535]
[1646200025658,49.20057123,103.67,103.6,28.6535]
[1646200026060,145.58057123,103.67,103.6,28.6535]
[1646200026558,49.20057123,103.67,103.6,28.6535]
[1646200026857,145.58057123,103.67,103.6,28.6535]
[1646200028062,49.20057123,103.67,103.6,28.6535]
[1646200028258,145.58057123,103.67,103.6,28.6535]
[1646200030464,145.58057123,103.67,103.6,14.1771]
[1646200030667,149.43957123,103.67,103.6,14.1771]
[1646200032163,53.05957123,103.67,103.6,14.1771]
[1646200032787,149.43957123,103.67,103.6,14.1771]
[1646200032964,53.05957123,103.67,103.6,14.1771]
[1646200033167,53.05957123,103.67,103.6,28.6542]
[1646200033364,49.20057123,103.67,103.6,40.1942]
[1646200033563,24.7827,103.68,103.6,40.1942]
[1646200033963,24.7827,103.68,103.6,64.6693]
[1646200034666,50.00658946,103.67,103.6,64.6693]
[1646200035066,50.00658946,103.67,103.6,53.1293]
[1646200037869,28.6417,103.68,103.6,53.1293]
[1646200038071,28.6417,103.68,103.6,161.0493]
[1646200038272,24.7827,103.68,103.6,161.0493]
[1646200038469,24.7827,103.68,103.6,84.08714437]
[1646200038969,80.49051275,103.68,103.6,84.08714437]
[1646200039170,80.49051275,103.68,103.6,64.6693]
[1646200039773,80.49051275,103.68,103.6,69.6693]
[1646200040776,80.49051275,103.68,103.6,64.6693]
[1646200040970,24.7827,103.68,103.6,64.6693]
[1646200041172,3.859,103.71,103.64,14.4709]
[1646200041371,24.22,103.72,103.64,26.0109]
[1646200041573,24.22,103.72,103.64,122.3909]
[1646200042073,44.40025886,103.71,103.64,26.0109]
[1646200043773,44.40025886,103.71,103.64,40.2823]
[1646200044574,68.09725886,103.71,103.64,40.2823]
[1646200045172,27.82496892,103.74,103.64,138.87469791]
[1646200045375,124.20396892,103.76,103.65,23.1236]
[1646200045575,147.53596892,103.76,103.67,14.4673]
[1646200045773,23.96696892,103.75,103.67,14.4673]
[1646200045977,3.856,103.74,103.67,14.4673]
[1646200046188,53.68415678,103.73,103.67,14.4673]
[1646200046574,53.68415678,103.73,103.67,26.0073]
[1646200048898,53.68415678,103.73,103.67,40.6746]
[1646200049796,53.68415678,103.73,103.67,26.0073]
[1646200050797,53.68415678,103.73,103.65,49.1329]
[1646200053600,53.68415678,103.73,103.65,145.5129]
[1646200053802,53.66262531,103.73,103.65,145.5129]
[1646200054200,53.66262531,103.73,103.65,49.1329]
[1646200055600,27.9316,103.74,103.65,49.1329]
[1646200055801,27.9316,103.74,103.65,145.5129]
[1646200056005,24.0756,103.74,103.65,145.5129]
[1646200056603,76.91811113,103.74,103.65,150.5129]
[1646200056805,76.91811113,103.74,103.65,145.5129]
[1646200057406,76.91811113,103.74,103.68,14.4652]
[1646200060407,76.91811113,103.74,103.68,28.8186]
[1646200061208,76.91811113,103.74,103.68,14.4652]
[1646200066016,173.29811113,103.74,103.68,14.4652]
[1646200066214,197.26508005,103.74,103.67,24.3828]
[1646200068118,100.88508005,103.74,103.67,24.3828]
[1646200068319,197.26508005,103.74,103.67,24.3828]
[1646200068918,100.88508005,103.74,103.67,24.3828]
[1646200069719,100.88508005,103.74,103.67,38.8502]
[1646200071323,197.26508005,103.74,103.67,38.8502]
[1646200071522,100.88508005,103.74,103.67,38.8502]
[1646200072124,76.91811113,103.74,103.67,38.8502]